Cogmind - Beta 15 @@@ ROGUE MODE // 2025.06.13 @ 14:10:04 Player: jumpy Result: Destroyed by E5-HFP(R) with Subdweller Machine Gun Performance ------------- Evolutions (0) 0 Regions Visited (2) 400 Robots Destroyed (17) 85 Value Destroyed (203) 203 Prototype IDs (0) 0 Alien Tech Used (0) 0 Bonus (0) 0 TOTAL SCORE: 688 Bonus ------- None Cogmind --------- Core Integrity 0/250 Matter 300/300 Energy 30/100 System Corruption 0% Temperature Cool (0) Movement Treading (240) Ox1 Location -10/Subcaves Parts ------- > --- POWER (1) -------- (None) > --- PROPULSION (2) --- Light Treads > --- UTILITY (2) ------ Large Storage Unit Seismic Detector > --- WEAPON (2) ------- Medium Laser > --- INVENTORY (15) --- Light Ion Engine Wheel Wheel Medium Storage Unit Improved Terrain Scanner Seismic Detector Small Laser Light Cannon Mining Laser Peak State ------------ > --- POWER ------------ Ion Engine > --- PROPULSION ------- Light Treads Light Treads > --- UTILITY ---------- Small Storage Unit Seismic Detector > --- WEAPON ----------- Medium Laser Medium Laser > --- INVENTORY -------- Light Ion Engine Wheel Wheel Improved Terrain Scanner Seismic Detector Small Laser Light Cannon Mining Laser [Rating: 8] Favorites ----------- Power Ion Engine Engine Ion Engine Propulsion Light Treads Treads Light Treads Utility Seismic Detector Device Seismic Detector Storage Large Storage Unit Weapon Medium Laser Energy Gun Medium Laser Build | -11 -10 -10 ------- Run | Yrd Mat Sub Slots Evolved . | . . . Power . | . . . Propulsion . | . . . Utility . | . . . Weapon . | . . . Parts Attached 10 | 7 3 . Power 1 | 1 . . Engine 1 | 1 . . Core . | . . . Reactor . | . . . Propulsion 2 | 2 . . Treads 2 | 2 . . Leg . | . . . Wheel . | . . . Hover . | . . . Flight . | . . . Utility 4 | 2 2 . Device 1 | 1 . . Storage 3 | 1 2 . Processor . | . . . Hackware . | . . . Protection . | . . . Artifact . | . . . Weapon 3 | 2 1 . Energy Gun 3 | 2 1 . Energy Cannon . | . . . Ballistic Gun . | . . . Ballistic Cannon . | . . . Launcher . | . . . Special Weapon . | . . . Impact Weapon . | . . . Slashing Weapon . | . . . Piercing Weapon . | . . . Special Melee Weapon . | . . . Unidentified Prototypes . | . . . Parts Lost 3 | . . 3 Power 1 | . . 1 Propulsion 1 | . . 1 Utility . | . . . Weapon 1 | . . 1 Highest Loss Streak 3 | . . 3 To Critical Strikes . | . . . Average Backups 7 | 3 8 9 Power . | . 1 1 Propulsion 1 | 1 2 2 Utility 2 | . 2 3 Weapon 2 | . 2 3 Tool/Special . | . . . Unused Backups 7 | . . 7 Power 1 | . . 1 Propulsion 2 | . . 2 Utility 2 | . . 2 Weapon 2 | . . 2 Tool/Special . | . . . Average Slot Usage (%) 98 | . 100 91 Engine 13 | . 14 9 Treads 27 | . 28 23 Device 14 | . 14 14 Storage 14 | . 14 14 Energy Gun 28 | . 28 28 Peak Build Rating 8 | 7 8 8 Average Rating 7 | 5 7 7 On Entrance 5 | . 7 8 Naked Turns . | . . . Heaviest Build 30 | 14 30 30 Greatest Support 40 | 40 40 40 Greatest Overweight (x) . | . . . Average Overweight (x) . | . . . Largest Inventory Capacity 15 | 8 15 15 Average Capacity 11 | 7 11 15 Most Carried 9 | 6 9 9 Average Carried 7 | 3 8 9 Final Capacity 15 | 8 15 15 Final Carried 9 | 6 9 9 Class Distribution -------------------- 100% | Mutant Dominant Class ---------------- Mutant | -10/Materials Mutant | -10/Subcaves Resources | -11 -10 -10 ----------- Run | Yrd Mat Sub Matter Collected 300 | 270 30 . Remotely . | . . . Salvage Created 452 | 159 235 58 Parts 28 | 10 17 1 Haulers Intercepted 1 | . 1 . Recyclers Shooed . | . . . Parts Field Recycled . | . . . Retrieved Matter . | . . . Parts Self-Destructed 7 | . . 7 Prevented . | . . . Kills | -11 -10 -10 ------- Run | Yrd Mat Sub Combat Hostiles Destroyed 6 | . 5 1 Guns 6 | . 5 1 Classes Destroyed 9 | 2 6 1 Worker 3 | . 3 . Builder 1 | . 1 . Tunneler 4 | 4 . . Hauler 1 | . 1 . Recycler 1 | 1 . . Watcher 1 | . 1 . Swarmer 3 | . 3 . Grunt 2 | . 2 . Sentry 1 | . . 1 Best Kill Streak 3 | 3 2 1 Combat Bots Only 2 | . 2 1 Max Kills in Single Turn 1 | 1 1 1 Gunslinging . | . . . Exploded . | . . . Melee . | . . . Uniques/NPCs Destroyed . | . . . Combat | -11 -10 -10 -------- Run | Yrd Mat Sub Hostile Shots Fired 70 | . 35 35 Missed 18 | . 7 11 Hits 52 | . 28 24 Projectile 52 | . 28 24 Critical Strikes 2 | . . 2 Damage Taken 711 | . 282 429 Core 256 | . 75 181 Absorbed by Shields . | . . . Core Remaining (%) 100 | 100 . . Volleys Fired 57 | 8 28 21 Largest 2 | 2 2 2 Hottest 100 | 90 100 100 Shots Fired 113 | 16 56 41 Gun 113 | 16 56 41 Cannon . | . . . Launcher . | . . . Special . | . . . Kinetic . | . . . Thermal 113 | 16 56 41 Explosive . | . . . Electromagnetic . | . . . Robot Hit Streak 14 | 4 8 14 Robot Miss Streak 3 | 3 2 1 Penetration Max . | . . . Secondary Targets . | . . . Shots Hit Robots 72 | 8 31 33 Core Hits 23 | 6 13 4 Critical Kills . | . . . Critical Parts Destroyed . | . . . Critical Strikes 2 | . 1 1 Burn 2 | . 1 1 Melee Attacks . | . . . Impact . | . . . Slashing . | . . . Piercing . | . . . Sneak Attacks . | . . . Combat Hostiles . | . . . Follow-up Attacks . | . . . Damage Inflicted 913 | 93 414 406 Guns 884 | 93 385 406 Cannons . | . . . Explosions . | . . . Melee . | . . . Ramming 29 | . 29 . Kinetic . | . . . Thermal 884 | 93 385 406 Explosive . | . . . Electromagnetic . | . . . Impact . | . . . Slashing . | . . . Piercing . | . . . Highest Corruption . | . . . Average Corruption . | . . . Corruption Purged . | . . . Corruption Blocked . | . . . Overload Shots . | . . . Overflow Damage . | . . . Projectiles . | . . . Explosions . | . . . Melee . | . . . Knockbacks . | . . . Impact . | . . . Kinetic . | . . . Secondary . | . . . Self-Inflicted Damage . | . . . Shots . | . . . Rammed 1 | . 1 . Targets Rammed 3 | . 3 . Kicked . | . . . Crushed 2 | . 2 . Highest Temperature 230 | 60 230 20 Average Temperature 62 | 24 74 8 Received Heat Transfer 207 | . 108 99 Effects 2 | . 2 . Interference 2 | . 2 . Siege Activations . | . . . Martial Activations . | . . . Shielding Activations . | . . . Robots Disrupted . | . . . Combat Hostiles . | . . . Robots Corrupted . | . . . Combat Hostiles . | . . . Parts Fried . | . . . Impact Corruptions . | . . . Robots Melted . | . . . Combat Hostiles . | . . . Parts Melted 1 | . 1 . Heat Transferred 2764 | 248 1221 1295 Parts Sabotaged . | . . . Parts Stolen . | . . . Parts Stripped . | . . . Power Chain Reactions . | . . . Alert | -11 -10 -10 ------- Run | Yrd Mat Sub Maximum Alert Level . | . . . Low Security (%) 100 | 100 100 . Level 1 . | . . . Level 2 . | . . . Level 3 . | . . . Level 4 . | . . . Level 5 . | . . . High Security . | . . . Max Security . | . . . Peak Influence 50 | 5 50 . Initial . | . . . Average 8 | 1 10 . Influence Increases 208 | 25 163 20 Destroy 0b10 Robot/C 120 | . 100 20 Destroy 0b10 Robot/NC 55 | 25 30 . Destroy Leader 14 | . 14 . Successful Hack 4 | . 4 . Lose Combat Pursuer 15 | . 15 . Influence Decreases 208 | 25 142 41 Entered New Map 11 | . . 11 Time Decay 187 | 25 142 20 Lost Part 10 | . . 10 Squads Dispatched 1 | . 1 . Investigation . | . . . Extermination . | . . . Reinforcement 1 | . 1 . Assault . | . . . Garrison . | . . . Intercept . | . . . Searches Triggered . | . . . Construction Impeded . | . . . Haulers Reinforced . | . . . Active Scanning Responses . | . . . Cargo Convoy Interrupts . | . . . Stealth | -11 -10 -10 --------- Run | Yrd Mat Sub Distress Signals 3 | . 3 . Communications Jammed . | . . . Distress Signals . | . . . Times Spotted 15 | . 13 2 Peak Tracking Total 4 | . 4 1 Tactical Retreats 1 | . 1 . Traps | -11 -10 -10 ------- Run | Yrd Mat Sub Traps Triggered . | . . . Indirectly . | . . . Trap Hack Attempts . | . . . Triggered . | . . . Disarmed . | . . . Reprogrammed . | . . . Reused . | . . . Traps Extracted . | . . . Installed . | . . . Triggered . | . . . Machines | -11 -10 -10 ---------- Run | Yrd Mat Sub Machines Disabled . | . . . Max in Single Turn . | . . . Machines Repaired . | . . . Machines Dismantled . | . . . Machines Sabotaged . | . . . Overloaded Fab Kills . | . . . Hacking | -11 -10 -10 --------- Run | Yrd Mat Sub Machines Accessed 3 | . 3 . Terminals 3 | . 3 . Fabricators . | . . . Repair Stations . | . . . Recycling Units . | . . . Scanalyzers . | . . . Garrison Access . | . . . Total Hacks 6 | . 6 . Successful 3 | . 3 . Failed 3 | . 3 . Catastrophic . | . . . Database Lockouts . | . . . Manual 6 | . 6 . Terminals 6 | . 6 . Fabricators . | . . . Repair Stations . | . . . Recycling Units . | . . . Scanalyzers . | . . . Garrison Access . | . . . Terminal Hacks . | . . . Fabricator Hacks . | . . . Repair Station Hacks . | . . . Recycling Unit Hacks . | . . . Scanalyzer . | . . . Garrison Access Hacks . | . . . Unauthorized Hacks 3 | . 3 . Terminals 3 | . 3 . Skim 3 | . 3 . Fabricators . | . . . Repair Stations . | . . . Recycling Units . | . . . Scanalyzers . | . . . Garrison Access . | . . . Data Cores Recovered . | . . . Used . | . . . Hacking Detections 1 | . 1 . Full Trace Events . | . . . Feedback Events . | . . . Feedback Blocked . | . . . Robot Schematics Acquired . | . . . Robots Built . | . . . Authchips . | . . . Time . | . . . Total Robot Build Rating . | . . . Part Schematics Acquired . | . . . Parts Built . | . . . Authchips . | . . . Time . | . . . Total Part Build Rating . | . . . Parts Repaired . | . . . Time . | . . . Parts Recycled . | . . . Recycled Matter . | . . . Retrieved Matter . | . . . Retrieved Components . | . . . Parts Scanalyzed . | . . . Part Schematics Acquired . | . . . Parts Damaged . | . . . Bothacking | -11 -10 -10 ------------ Run | Yrd Mat Sub Used RIF Installer . | . . . Robots Hacked . | . . . Non-combat . | . . . Combat . | . . . Robot Hacks Applied . | . . . Relay Couplers Released . | . . . Fabnet Peak Effective % . | . . . Robots Rewired . | . . . Allies Hacked . | . . . Hacks Repelled . | . . . Allies | -11 -10 -10 -------- Run | Yrd Mat Sub Total Allies . | . . . Largest Group . | . . . Highest-Rated Group . | . . . Highest-Rated Ally . | . . . Total Orders . | . . . Ally Attacks . | . . . Total Damage . | . . . Kills . | . . . Allies Corrupted . | . . . Allies Melted . | . . . Intel | -11 -10 -10 ------- Run | Yrd Mat Sub Active Infowar (turns) 831 | 124 615 92 Seismic 831 | 124 615 92 Robot Analysis Total . | . . . Derelict Logs Recovered . | . . . Drone Launches . | . . . Drone Recoveries . | . . . Exploration | -11 -10 -10 ------------- Run | Yrd Mat Sub Turns Passed 925 | 199 634 92 Spaces Moved 398 | 103 276 19 Core 5 | 5 . . Treads 393 | 98 276 19 Legs . | . . . Wheels . | . . . Hover . | . . . Flight . | . . . Fastest Speed 50 | 50 160 160 Average Speed 158 | 154 160 160 Slowest Speed 160 | 160 160 160 Overloaded Moves . | . . . Propulsion Burnouts . | . . . Robots Hopped . | . . . Potential Cave-ins . | . . . Cave-ins Triggered . | . . . Exploration Rate (%) 15 | 9 34 3 Regions Visited 2 Branch Regions 1 Pre-discovered Areas . | . . . Known Exits Taken . | . . . Unknown Exits Taken 2 | 1 1 . Scrap Searched . | . . . Spaces Dug . | . . . Terrain Destroyed . | . . . Melee . | . . . Projectile . | . . . AOE . | . . . Terrain Rammed . | . . . Walls Destroyed . | . . . Machines Disabled . | . . . Actions | -11 -10 -10 --------- Run | Yrd Mat Sub Total 573 | 123 410 40 Wait 98 | . 98 . Move 396 | 102 275 19 Hop . | . . . Pick Up 8 | 6 2 . Fast Attach 7 | 7 . . Attach . | . . . Detach . | . . . Swap 3 | . 3 . Drop 1 | . 1 . Fire 57 | 8 28 21 Melee . | . . . Ram . | . . . Kick . | . . . Crush 3 | . 3 . Escape Stasis . | . . . Rewire . | . . . Trap . | . . . Miscellaneous . | . . . Route ------- -11/Scrapyard -10/Materials (discovered 3 exits: [*Mat] / [*Min] / [*Sub]) -10/Subcaves History --------- Turn | Location | Event 9 | -11/Scrapyard | Discovered new exit (range 16) 200 | -11/Scrapyard | Entered Materials 240 | -10/Materials | Discovered new exit (range 6) 313 | -10/Materials | Build established: Mutant 497 | -10/Materials | Discovered new exit (range 15) 640 | -10/Materials | Discovered new exit (range 8) 834 | -10/Materials | Entered Subcaves 895 | -10/Subcaves | Core integrity fell below 50% 917 | -10/Subcaves | Core integrity fell below 20% 926 | -10/Subcaves | Destroyed by E5-HFP(R) with Subdweller Machine Gun Last Messages --------------- 00691_ Acquired 10 matter. 00693_ R-06 Scavenger inserts Lgt. Ion Engine into recycling unit. 00694_ Recycling unit begins recycling process. 00696_ R-06 Scavenger inserts Med. Matter Pod into recycling unit. 00699_ R-06 Scavenger inserts Wheel into recycling unit. 00700_ Recycling unit begins recycling process. 00757_ Crushed U-05 Engineer. 00757_ U-05 Engineer destroyed. 00766_ W-16 Scout destroyed. 00811_ K-01 Serf collects debris. LOCATION=UNKNOWN AMBIENT_HEAT=-10 GOAL=ESCAPE 00859_ Critical hit (Burn: +37). 00884_ Y-45 Defender destroyed. 00889_ Beam Rifle fries itself beyond repair. 00897_ Lgt. Treads destroyed. 00899_ Ion Engine destroyed. 00910_ E5-HFP(R) suffers critical hit (Burn). 00924_ Med. Laser destroyed. Map ----- +----------------------------------------------------+ | ?????????????????????????????????????????????????? | | ?????????????????????????????????????????????????? | | ?????????????????????????????????????????????????? | | ?????????????????????????????????????????????????? | | ?????????????????????????????????????????????????? | | ?????????????????????????????????????????????????? | | ?????????????????????????????????????????????????? | | ?????????????????????????????????????????????????? | | ?????????????????????????????????????????????????? | | ?????????????????????????????????????????????????? | | ?????????????????????????????????????????????????? | | ?????????????????????????????????????????????????? | | ?????????????????????????????????????????????????? | | ??????????????????###????????????????????????????? | | ??????????????????? ##??????????????????????????? | | ??????????????????? ###????????????????????????? | | ???????????????????? ###??????????????????????? | | ????????????????????# ##?????????????????????? | | ???????????????###### ###???????????????????? | | ??????????????## ## ##??????????????????? | | ??????????????# #??????????????????? | | ??????????????## # #??????????????????? | | ??????????????# ### #??????????????????? | | ??????????????# #?## #??????????????????? | | ??????????????# #??# ####???????????????? | | ??????????????## ##??## @ #???????????????? | | ??????????????# #???# % #??????????????? | | ??????????????# ##???# #??????????????? | | ??????????????# ##???# R #?????????????? | | ??????????????# #???# #???????????? | | ??????????????## #???# #???????????? | | ??????????????# #??? #### ??????????? | | ????????????# ???? ??????????? | | ????????????## ???????????? | | ?????????????##### # ## # ???????????? | | ?????????????????? # ##???? ? ????????????? | | ?????????????????? ??????? ????????????? | | ?????????????????? ???????# ??????????????? | | ?????????????????? # # ???????????????????????? | | ??????????????????##### ##??????????????????????? | | ??????????????????????? #???????????????????????? | | ???????????????????????? #???????????????????????? | | ?????????????????????????#???????????????????????? | | ?????????????????????????????????????????????????? | | ?????????????????????????????????????????????????? | | ?????????????????????????????????????????????????? | | ?????????????????????????????????????????????????? | | ?????????????????????????????????????????????????? | | ?????????????????????????????????????????????????? | | ?????????????????????????????????????????????????? | +----------------------------------------------------+ Best States ------------- Heat Dissipation 25 Energy Generation 10 Energy Capacity 250 Matter Stores 300 Matter Capacity 300 Sight Range 16 Terrain Scan Density 10 Evasion (%) 40 Recoil Reduction 2 Item Schematics ----------------- None Robot Schematics ------------------ None Fabricated ------------ Nothing Repaired ---------- Nothing Alien Tech Used ----------------- None Achievements -------------- None Challenges ------------ None Game ------ Seed NuclearZioniteTrap Manual? 0 Play Time 00:04:46 Cumulative 125.4 hours Start 2025.06.13 @ 14:05:39 End 2025.06.13 @ 14:10:04 Sessions 1 Manual Loads 0 Difficulty Rogue Special Mode None Game No. 327 Rogue 327 Adventurer 0 Explorer 0 Win Type - Total 3 Types 2/0/1/0/0/0/0/0/0/0 Lore% 61 Gallery% 54 Achievement% 45 Wizard Run 0 Options --------- Layout 0 ASCII 0 Keyboard 0 Movement Numpad Keybinds 0 Fullscreen 2 Font 18/Terminus Map View 76x50 Zoom Use 0% Tactical HUD 1 Map Filters NONE Filters NONE Steam 1 RUN: 15c6136b-954b-41d1-b3ca-c8c98342da1d